Workbook

Sheet data
D4: Irrigation Data
B5: Adelaide | C5: Brisbane | D5: Canberra | E5: Darwin | F5: Hobart | G5: Melbourne | H5: Perth | I5: Sydney | L5: Adelaide | N5: SYDNEY RAINFALL | R5: PERTH | W5: MELBOURNE | AB5: BRISBANE SHOW GROUNDS | AG5: 094030 , Hobart Botanical Gardens | AL5: 014016 , Darwin Post Office | AR5: 70014 Canberra
B6: 145.8493976 | C6: 115.0361446 | D6: 143.7951807 | E6: 0 | F6: 88.3313253 | G6: 121.1987952 | H6: 168.4457831 | I6: 147.9036145 | L6: Adelaide
B7: 124.313253 | C7: 92.77108434 | D7: 111.3253012 | E7: 0 | F7: 72.36144578 | G7: 103.9036145 | H7: 142.8674699 | I7: 118.746988 | L7: 3.4 | N7: Time | O7: 66062 | R7: Year | S7: Month | T7: Day | U7: Perth | W7: Year | X7: Month | Y7: Day | Z7: Melbourne | AB7: Year | AC7: Month | AD7: Day | AE7: Brisbane | AG7: Year | AH7: Month | AI7: Day | AJ7: Hobart | AL7: Year | AM7: Month | AN7: Day | AO7: Darwin | AT7: Canberra
B8: 100.6566265 | C8: 92.43975904 | D8: 92.43975904 | E8: 0 | F8: 59.57228916 | G8: 82.1686747 | H8: 127.3614458 | I8: 108.873494 | L8: 0 | N8: and | O8: 10 | R8: 1970 | S8: 1 | T8: 1 | U8: 0 | W8: 1975 | X8: 1 | Y8: 1 | Z8: 0 | AB8: 1975 | AC8: 1 | AD8: 1 | AE8: 0 | AG8: 1975 | AH8: 1 | AI8: 1 | AJ8: 0 | AK8: =SUM(AJ8:AJ9676)/26.5 -> 552.8830189 | AL8: 1935 | AM8: 1 | AN8: 1 | AO8: 1.5 | AQ8: 1975 | AR8: 1 | AS8: 1 | AT8: 0
B9: 59.63855422 | C9: 73.55421687 | D9: 53.6746988 | E9: 0 | F9: 0 | G9: 0 | H9: 79.51807229 | I9: 0 | L9: 0 | N9: Date | O9: Sydney | U9: 0 | Z9: 0 | AE9: 0 | AJ9: 0.8 | AO9: 0 | AT9: 0
B10: 0 | C10: 0 | D10: 0 | E10: 145.8493976 | F10: 0 | G10: 0 | H10: 55.46385542 | I10: 0 | L10: 0 | N10: 1975-01-01T09:00:00 | O10: 3.4 | U10: 0 | Z10: 0 | AE10: 0 | AJ10: 0 | AO10: 0 | AT10: 0
B11: 0 | C11: 0 | D11: 0 | E11: 139.1566265 | F11: 0 | G11: 0 | H11: 0 | I11: 0 | L11: 0 | O11: 0 | U11: 0 | Z11: 0 | AE11: 0 | AJ11: 0 | AO11: 0 | AT11: 0.4
B12: 0 | C12: 0 | D12: 0 | E12: 147.9036145 | F12: 0 | G12: 0 | H12: 0 | I12: 0 | L12: 0 | O12: 7 | U12: 0 | Z12: 0 | AE12: 0 | AJ12: 2 | AO12: 1.5 | AT12: 0
B13: 0 | C13: 0 | D13: 0 | E13: 154.0662651 | F13: 0 | G13: 0 | H13: 0 | I13: 0 | L13: 0 | O13: 10 | U13: 0 | Z13: 0 | AE13: 9 | AJ13: 1.6 | AO13: 14.7 | AT13: 0
B14: 59.63855422 | C14: 83.4939759 | D14: 55.6626506 | E14: 159.0361446 | F14: 0 | G14: 0 | H14: 69.57831325 | I14: 95.42168675 | L14: 0 | O14: 3.2 | U14: 0 | Z14: 0 | AE14: 0 | AJ14: 0.4 | AO14: 0 | AT14: 0
B15: 88.3313253 | C15: 98.60240964 | D15: 82.1686747 | E15: 170.5 | F15: 55.46385542 | G15: 73.95180723 | H15: 102.7108434 | I15: 119.1445783 | L15: 0 | O15: 0 | U15: 0 | Z15: 0 | AE15: 34 | AJ15: 0 | AO15: 25.4 | AT15: 0
B16: 113.313253 | C16: 109.3373494 | D16: 109.3373494 | E16: 155.060241 | F16: 69.57831325 | G16: 91.44578313 | H16: 125.2409639 | I16: 129.2168675 | L16: 14 | O16: 0 | U16: 0 | Z16: 2 | AE16: 44 | AJ16: 23 | AO16: 5.8 | AT16: 0
B17: 133.5240964 | C17: 129.4156627 | D17: 141.7409639 | E17: 143.7951807 | F17: 80.11445783 | G17: 110.9277108 | H17: 158.1746988 | I17: 152.0120482 | L17: 0 | O17: 0 | U17: 0 | Z17: 2 | AE17: 0 | AJ17: 12 | AO17: 0 | AT17: 41.6
L18: 0 | O18: 0.4 | U18: 0 | Z18: 1.6 | AE18: 0 | AJ18: 13.6 | AO18: 17.3 | AT18: 0
L19: 0 | O19: 0 | U19: 0 | Z19: 1 | AE19: 0 | AJ19: 0.8 | AO19: 9.4 | AT19: 0
L20: 0 | O20: 0 | U20: 0 | Z20: 0.6 | AE20: 73 | AJ20: 0 | AO20: 73.9 | AT20: 0
L21: 0 | O21: 0 | U21: 0 | Z21: 0 | AE21: 0 | AJ21: 1 | AO21: 64 | AT21: 0
A22: Capital Recovery Method | E22: Interest rate= | F22: 0.05 | G22: =INDEX(LINEST(I28:I33,A28:A33^{1,2}),1,1) -> -4.202946055e-07 | H22: =INDEX(LINEST(I28:I33,A28:A33^{1,2}),1,2) -> 0.01914048578 | I22: =INDEX(LINEST(I28:I33,A28:A33^{1,2}),1,3) -> 181.8146064 | L22: 0 | O22: 0 | U22: 2.8 | Z22: 0 | AE22: 0 | AJ22: 0 | AO22: 8.6 | AT22: 0
L23: 0 | O23: 0 | U23: 0 | Z23: 0 | AE23: 0 | AJ23: 0 | AO23: 66.8 | AT23: 0
A24: Tank size | B24: Supply | C24: Pipework | D24: plumbing | E24: Support | F24: pump and | G24: Maintenance-cleaning | I24: Annualised | L24: 0 | O24: 0 | U24: 0 | Z24: 0 | AE24: 0 | AJ24: 0.1 | AO24: 11.7 | AT24: 0
B25: (delivered) | C25: and labour | D25: to house | E25: structure | F25: float/diverta | G25: $ per number of yr period | I25: Cost $ | L25: 0 | O25: 0.7 | U25: 0 | Z25: 1.2 | AE25: 0 | AJ25: 7.2 | AO25: 0 | AT25: 0
A26: Replacement period | B26: 30 | C26: 50 | D26: 50 | E26: 50 | F26: 10 | G26: 5 | L26: 0 | O26: 0 | U26: 0 | Z26: 0 | AE26: 0 | AJ26: 0 | AO26: 0 | AT26: 0
A27: Annualised % | B27: =(($F$22*((1+$F$22)^B26))/(((1+$F$22)^B26)-1)) -> 0.06505143508 | C27: 0.05477673549 | D27: 0.05477673549 | E27: 0.05477673549 | F27: 0.129504575 | G27: 0.2309747981 | L27: 0 | O27: 0 | U27: 0 | Z27: 0 | AE27: 0 | AJ27: 0.8 | AO27: 11.9 | AT27: 0
A28: 500 | B28: 300 | C28: 200 | D28: 400 | E28: 40 | F28: =350+400 -> 750 | G28: 150 | I28: =(B28*$B$27+C28*$C$27+D28*$D$27+E28*$E$27+F28*$F$27+G28*$G$27) -> 186.3471922 | J28: =$G$22*A28^2+$H$22*A28+$I$22 -> 191.2797757 | K28: =(ABS(I28-J28))^2 -> 24.33037979 | L28: 0 | O28: 0 | U28: 0 | Z28: 0 | AE28: 0 | AJ28: 0 | AO28: 6.4 | AT28: 0
A29: 1000 | B29: 400 | C29: =C28+50 -> 250 | D29: 400 | E29: 60 | F29: =350+400 -> 750 | G29: 150 | I29: 196.6867072 | J29: =$G$22*A29^2+$H$22*A29+$I$22 -> 200.5347976 | K29: 14.80779992 | L29: 0 | O29: 0 | U29: 0 | Z29: 0 | AE29: 0 | AJ29: 0.1 | AO29: 0 | AT29: 0
A30: 2000 | B30: 600 | C30: =C29+50 -> 300 | D30: 400 | E30: 200 | F30: =350+400 -> 750 | G30: 200 | I30: 231.6533138 | J30: 218.4143996 | K30: 175.2688511 | L30: 0 | O30: 0 | U30: 0 | Z30: 0 | AE30: 0 | AJ30: 0 | AO30: 0 | AT30: 0
A31: 5000 | B31: 650 | C31: =C30+50 -> 350 | D31: 400 | E31: 300 | F31: =500+400 -> 900 | G31: 200 | I31: 262.5480822 | J31: 267.0096702 | K31: 19.90576782 | L31: 0 | O31: 0 | U31: 0.3 | Z31: 1.6 | AE31: 0 | AJ31: 0 | AO31: 0 | AT31: 0
A32: 10000 | B32: 1000 | C32: =C31+50 -> 400 | D32: 400 | E32: 400 | F32: 1100 | G32: 250 | I32: 330.9822497 | J32: 331.1900037 | K32: 0.04316174107 | L32: 0 | O32: 0 | U32: 0 | Z32: 2 | AE32: 0 | AJ32: 4.2 | AO32: 58.2 | AT32: 1.4
A33: 20000 | B33: 1800 | C33: =C32+50 -> 450 | D33: 400 | E33: 600 | F33: 1100 | G33: 250 | I33: 396.7175816 | J33: 396.5064799 | K33: 0.0445639321 | L33: 0 | O33: 0 | U33: 0 | Z33: 8.6 | AE33: 0 | AJ33: 1.4 | AO33: 4.1 | AT33: 28.6
K34: =SUM(K28:K33) -> 234.4005243 | L34: 0 | O34: 0 | U34: 0 | Z34: 0.2 | AE34: 0 | AJ34: 2.2 | AO34: 15.5 | AT34: 0
A35: Notes: | B35: Capital recovery method has been adopted for costing analysis. | L35: 0 | O35: 5.8 | U35: 0 | Z35: 0 | AE35: 0 | AJ35: 0 | AO35: 2 | AT35: 0
B36: If adjustments are made to cost data you must run the "update annual cost fundtion" button to update revised costing. | L36: 0 | O36: 1.9 | U36: 0 | Z36: 0 | AE36: 0 | AJ36: 0 | AO36: 1 | AT36: 0
B37: If solve button does not operate, you may need to install the solver function into excel, via tools-addins. | L37: 0 | O37: 6.4 | U37: 0 | Z37: 0 | AE37: 0 | AJ37: 0 | AO37: 0 | AT37: 0
B38: Cost data can be highly variable and should be checked with local data. | L38: 6.4 | O38: 0 | U38: 0 | Z38: 0 | AE38: 8 | AJ38: 0 | AO38: 1 | AT38: 0
B39: Data was provided the Rain Tank Centre in Adelaide (2003) | L39: 0 | O39: 0 | U39: 0 | Z39: 0 | AE39: 0 | AJ39: 0 | AO39: 2.5 | AT39: 0
B40: Electricity cost associated with pumping has not been included | L40: 0 | O40: 0 | U40: 0 | Z40: 0 | AE40: 0 | AJ40: 0 | AO40: 0 | AT40: 0
L41: 0 | O41: 0 | U41: 0 | Z41: 0 | AE41: 0.6 | AJ41: 0 | AO41: 21.3 | AT41: 0
A42: Energy to pump the rainwater to the house | E42: 0.4 | F42: $/kL | L42: 0 | O42: 0 | U42: 1.5 | Z42: 0 | AE42: 0 | AJ42: 0 | AO42: 1.5 | AT42: 0
L43: 0 | O43: 0 | U43: 7.9 | Z43: 0 | AE43: 0 | AJ43: 0 | AO43: 0 | AT43: 0
L44: 0 | O44: 0 | U44: 9.1 | Z44: 0 | AE44: 0 | AJ44: 0 | AO44: 7.4 | AT44: 0
L45: 0 | O45: 0 | U45: 11.4 | Z45: 0 | AE45: 0 | AJ45: 0 | AO45: 1.5 | AT45: 0
L46: 2.3 | O46: 0 | U46: 0 | Z46: 1 | AE46: 0 | AJ46: 0 | AO46: 3.3 | AT46: 0
L47: 1.7 | O47: 0 | U47: 0 | Z47: 0.4 | AE47: 0 | AJ47: 0 | AO47: 1 | AT47: 0
L48: 10.7 | O48: 0 | U48: 0 | Z48: 0 | AE48: 0 | AJ48: 0 | AO48: 19.3 | AT48: 6.4
L49: 8.1 | O49: 0 | U49: 0 | Z49: 0 | AE49: 0 | AJ49: 0 | AO49: 24.9 | AT49: 4.2
L50: 1.5 | O50: 1.5 | U50: 0 | Z50: 1.6 | AE50: 0 | AJ50: 0 | AO50: 13.2 | AT50: 53
L51: 0 | O51: 1.3 | U51: 0 | Z51: 0 | AE51: 0 | AJ51: 0 | AO51: 2.5 | AT51: 0.4
L52: 1.8 | O52: 0 | U52: 0 | Z52: 0 | AE52: 0 | AJ52: 0 | AO52: 0 | AT52: 0
L53: 0 | O53: 2.4 | U53: 0 | Z53: 0 | AE53: 0 | AJ53: 0 | AO53: 0 | AT53: 0.4
L54: 1.4 | O54: 3.3 | U54: 5.6 | Z54: 0 | AE54: 14 | AJ54: 0 | AO54: 0 | AT54: 12.8
L55: 0 | O55: 16.2 | U55: 9.9 | Z55: 0 | AE55: 0 | AJ55: 0 | AO55: 0 | AT55: 0
L56: 0 | O56: 0.4 | U56: 0 | Z56: 0 | AE56: 0 | AJ56: 0 | AO56: 10.2 | AT56: 0
L57: 0 | O57: 12.4 | U57: 0 | Z57: 0 | AE57: 0 | AJ57: 0 | AO57: 0 | AT57: 0
L58: 0 | O58: 0 | U58: 0 | Z58: 0.2 | AE58: 0 | AJ58: 0 | AO58: 33.8 | AT58: 0
L59: 1 | O59: 0 | U59: 0 | Z59: 0 | AE59: 0 | AJ59: 0 | AO59: 10.9 | AT59: 8.6
L60: 14.4 | O60: 0 | U60: 0 | Z60: 0 | AE60: 0 | AJ60: 5 | AO60: 3 | AT60: 9.2
L61: 3.3 | O61: 0.4 | U61: 0 | Z61: 0 | AE61: 0 | AJ61: 0 | AO61: 5.6 | AT61: 0
L62: 3.9 | O62: 13 | U62: 0 | Z62: 0 | AE62: 25 | AJ62: 0 | AO62: 5.6 | AT62: 0
L63: 0 | O63: 35.6 | U63: 0 | Z63: 0 | AE63: 87 | AJ63: 0 | AO63: 33.8 | AT63: 0
L64: 0 | O64: 15.2 | U64: 0 | Z64: 0 | AE64: 18 | AJ64: 0 | AO64: 0 | AT64: 0
L65: 0 | O65: 4.2 | U65: 0 | Z65: 0.6 | AE65: 0 | AJ65: 4.8 | AO65: 11.2 | AT65: 13.6
L66: 0 | O66: 1.9 | U66: 0 | Z66: 3.2 | AE66: 0 | AJ66: 0.6 | AO66: 1.3 | AT66: 0.6
L67: 0 | O67: 0 | U67: 0 | Z67: 0 | AE67: 0 | AJ67: 0 | AO67: 70.9 | AT67: 0.4
L68: 0 | O68: 29 | U68: 0 | Z68: 0 | AE68: 0 | AJ68: 0 | AO68: 26.2 | AT68: 0
L69: 0 | O69: 46.1 | U69: 0 | Z69: 2.4 | AE69: 0 | AJ69: 2.6 | AO69: 6.4 | AT69: 0
L70: 3 | O70: 6.6 | U70: 0 | Z70: 0.8 | AE70: 0 | AJ70: 0 | AO70: 2 | AT70: 0
L71: 0.2 | O71: 0.4 | U71: 0 | Z71: 0 | AE71: 0 | AJ71: 0 | AO71: 1.3 | AT71: 0
L72: 0.3 | O72: 0 | U72: 0 | Z72: 0 | AE72: 0 | AJ72: 0 | AO72: 20.3 | AT72: 0
L73: 0.1 | O73: 1.8 | U73: 0 | Z73: 0.8 | AE73: 5 | AJ73: 4.6 | AO73: 35.3 | AT73: 0
L74: 0 | O74: 0 | U74: 0 | Z74: 0.2 | AE74: 4 | AJ74: 0.6 | AO74: 22.4 | AT74: 10.8
L75: 0 | O75: 0 | U75: 0 | Z75: 0 | AE75: 0 | AJ75: 0.4 | AO75: 17.3 | AT75: 0.2
L76: 0 | O76: 0.2 | U76: 0 | Z76: 4.6 | AE76: 0 | AJ76: 0 | AO76: 59.4 | AT76: 0.4
L77: 0 | O77: 17.4 | U77: 0 | Z77: 0.8 | AE77: 0 | AJ77: 0.4 | AO77: 0 | AT77: 9.6
L78: 0 | O78: 39.2 | U78: 0 | Z78: 0 | AE78: 18 | AJ78: 0 | AO78: 0 | AT78: 0
L79: 0 | O79: 194 | U79: 0 | Z79: 0 | AE79: 0 | AJ79: 0 | AO79: 0 | AT79: 0
L80: 0 | O80: 13.2 | U80: 0 | Z80: 0 | AE80: 0 | AJ80: 0 | AO80: 25.9 | AT80: 0
L81: 0 | O81: 23.5 | U81: 0 | Z81: 5.8 | AE81: 0 | AJ81: 8 | AO81: 15.2 | AT81: 0
L82: 0 | O82: 0 | U82: 0.8 | Z82: 2.4 | AE82: 21 | AJ82: 7.8 | AO82: 51.8 | AT82: 0
L83: 0 | O83: 0 | U83: 0 | Z83: 0 | AE83: 0 | AJ83: 0 | AO83: 0 | AT83: 0
L84: 0 | O84: 4.5 | U84: 0 | Z84: 0 | AE84: 0 | AJ84: 0.6 | AO84: 0 | AT84: 0.8
L85: 0 | O85: 0 | U85: 0 | Z85: 9.4 | AE85: 0 | AJ85: 5.3 | AO85: 6.4 | AT85: 6.2
L86: 0 | O86: 0 | U86: 0 | Z86: 0 | AE86: 5 | AJ86: 0.2 | AO86: 6.1 | AT86: 5
L87: 0 | O87: 1.6 | U87: 0 | Z87: 8.8 | AE87: 0 | AJ87: 0.4 | AO87: 4.8 | AT87: 0.2
L88: 0 | O88: 0.6 | U88: 0 | Z88: 0 | AE88: 0 | AJ88: 7.2 | AO88: 23.4 | AT88: 0
L89: 4.8 | O89: 0 | U89: 0 | Z89: 0 | AE89: 0 | AJ89: 7 | AO89: 36.6 | AT89: 0
L90: 0 | O90: 0 | U90: 0 | Z90: 3.4 | AE90: 0 | AJ90: 0.4 | AO90: 58.2 | AT90: 0
L91: 0 | O91: 0 | U91: 0 | Z91: 0 | AE91: 0 | AJ91: 0.2 | AO91: 14 | AT91: 0
L92: 3 | O92: 0 | U92: 0 | Z92: 0 | AE92: 0 | AJ92: 0 | AO92: 3.6 | AT92: 0
L93: 6 | O93: 1.3 | U93: 0 | Z93: 0 | AE93: 0 | AJ93: 0 | AO93: 0 | AT93: 0
L94: 1.6 | O94: 0.2 | U94: 0 | Z94: 0.8 | AE94: 0 | AJ94: 6.4 | AO94: 0 | AT94: 0
L95: 0 | O95: 0 | U95: 0 | Z95: 0 | AE95: 0 | AJ95: 0.4 | AO95: 0 | AT95: 6.4
L96: 0.8 | O96: 0 | U96: 0 | Z96: 1.2 | AE96: 0 | AJ96: 0.4 | AO96: 0 | AT96: 7.2
L97: 0 | O97: 2.5 | U97: 0 | Z97: 6.8 | AE97: 16 | AJ97: 0.4 | AO97: 0 | AT97: 0
L98: 0 | O98: 30.9 | U98: 0 | Z98: 5.8 | AE98: 0 | AJ98: 0.2 | AO98: 17 | AT98: 3.8
L99: 0 | O99: 0 | U99: 0 | Z99: 0.6 | AE99: 0 | AJ99: 0 | AO99: 5.6 | AT99: 0
L100: 0 | O100: 0 | U100: 0 | Z100: 0 | AE100: 0 | AJ100: 0 | AO100: 0.3 | AT100: 0
L101: 0 | O101: 0 | U101: 0 | Z101: 0 | AE101: 0 | AJ101: 0 | AO101: 0 | AT101: 0
L102: 0 | O102: 0 | U102: 0 | Z102: 4.6 | AE102: 0 | AJ102: 0.4 | AO102: 0 | AT102: 0
L103: 0 | O103: 0 | U103: 0 | Z103: 1.8 | AE103: 0 | AJ103: 0 | AO103: 0 | AT103: 1.2
L104: 4.3 | O104: 0 | U104: 0 | Z104: 0.2 | AE104: 0 | AJ104: 0 | AO104: 0 | AT104: 0.6
L105: 0 | O105: 0 | U105: 0 | Z105: 0 | AE105: 0 | AJ105: 0 | AO105: 0 | AT105: 0
L106: 0.2 | O106: 0 | U106: 0 | Z106: 0 | AE106: 0 | AJ106: 0 | AO106: 1.5 | AT106: 0
L107: 6.1 | O107: 0 | U107: 4.6 | Z107: 0.4 | AE107: 0 | AJ107: 0 | AO107: 2 | AT107: 0
L108: 3.5 | O108: 0 | U108: 0 | Z108: 0 | AE108: 0 | AJ108: 0 | AO108: 0.5 | AT108: 0
L109: 0 | O109: 0 | U109: 0 | Z109: 0 | AE109: 0 | AJ109: 0 | AO109: 0 | AT109: 0
L110: 0 | O110: 0 | U110: 0 | Z110: 0 | AE110: 1 | AJ110: 0 | AO110: 0 | AT110: 0
L111: 3.4 | O111: 0 | U111: 0 | Z111: 0 | AE111: 0 | AJ111: 0 | AO111: 0 | AT111: 0
L112: 1.9 | O112: 0.8 | U112: 0 | Z112: 0 | AE112: 0 | AJ112: 0 | AO112: 0 | AT112: 0.2
L113: 0.3 | O113: 5.6 | U113: 0 | Z113: 0 | AE113: 0 | AJ113: 0 | AO113: 0 | AT113: 5
L114: 2.4 | O114: 6.2 | U114: 5.3 | Z114: 0 | AE114: 3 | AJ114: 0 | AO114: 0 | AT114: 16.8
L115: 9.9 | O115: 27.1 | U115: 0 | Z115: 0 | AE115: 0 | AJ115: 0 | AO115: 0 | AT115: 19.8
L116: 5.3 | O116: 1.5 | U116: 8.9 | Z116: 0.4 | AE116: 0 | AJ116: 0 | AO116: 0 | AT116: 0
L117: 4.5 | O117: 1.4 | U117: 34.5 | Z117: 3.6 | AE117: 0 | AJ117: 0 | AO117: 0 | AT117: 0
L118: 0.1 | O118: 0 | U118: 11.7 | Z118: 0 | AE118: 9 | AJ118: 0.3 | AO118: 0 | AT118: 0.2
L119: 0 | O119: 0 | U119: 4.8 | Z119: 0 | AE119: 0 | AJ119: 0 | AO119: 0 | AT119: 1.8
L120: 0 | O120: 0 | U120: 0.5 | Z120: 0 | AE120: 3 | AJ120: 0 | AO120: 0 | AT120: 0.8
L121: 0 | O121: 1.9 | U121: 0.3 | Z121: 0 | AE121: 0 | AJ121: 0 | AO121: 0 | AT121: 0
L122: 1.4 | O122: 22.9 | U122: 0 | Z122: 0.2 | AE122: 0 | AJ122: 2.3 | AO122: 0 | AT122: 0
L123: 0 | O123: 1.1 | U123: 0 | Z123: 0 | AE123: 0 | AJ123: 0 | AO123: 0 | AT123: 0
L124: 0 | O124: 5.7 | U124: 0 | Z124: 0 | AE124: 8 | AJ124: 0 | AO124: 0 | AT124: 0
L125: 0 | O125: 1.4 | U125: 0.5 | Z125: 2 | AE125: 0 | AJ125: 18.4 | AO125: 0 | AT125: 0
L126: 0 | O126: 0 | U126: 0.5 | Z126: 0 | AE126: 0 | AJ126: 9 | AO126: 0 | AT126: 0
L127: 0 | O127: 0 | U127: 6.4 | Z127: 0 | AE127: 0 | AJ127: 2 | AO127: 0 | AT127: 0
L128: 0.3 | O128: 0 | U128: 3 | Z128: 0.4 | AE128: 0 | AJ128: 0 | AO128: 0 | AT128: 3.2
L129: 0.3 | O129: 0 | U129: 0 | Z129: 0 | AE129: 0 | AJ129: 0 | AO129: 0 | AT129: 0
L130: 8.9 | O130: 4.7 | U130: 0 | Z130: 0 | AE130: 0 | AJ130: 0 | AO130: 0 | AT130: 0
L131: 0.9 | O131: 10.1 | U131: 0 | Z131: 0 | AE131: 0 | AJ131: 0 | AO131: 0 | AT131: 0
L132: 7.7 | O132: 1.3 | U132: 0 | Z132: 3 | AE132: 2 | AJ132: 0 | AO132: 0 | AT132: 0
L133: 4.3 | O133: 0 | U133: 0 | Z133: 2.4 | AE133: 0 | AJ133: 0 | AO133: 0 | AT133: 0
L134: 0 | O134: 0 | U134: 0 | Z134: 1 | AE134: 0 | AJ134: 0.8 | AO134: 0 | AT134: 0
L135: 0 | O135: 0 | U135: 3.8 | Z135: 8.8 | AE135: 0 | AJ135: 12 | AO135: 0 | AT135: 0.4
L136: 0 | O136: 0 | U136: 17.5 | Z136: 0 | AE136: 0 | AJ136: 0 | AO136: 0 | AT136: 2.6
L137: 0 | O137: 0 | U137: 0.3 | Z137: 5 | AE137: 0 | AJ137: 0 | AO137: 0 | AT137: 0
L138: 2.2 | O138: 0.7 | U138: 6.9 | Z138: 0 | AE138: 0 | AJ138: 0 | AO138: 0 | AT138: 0
L139: 0.2 | O139: 0 | U139: 26.4 | Z139: 3.4 | AE139: 0 | AJ139: 1.4 | AO139: 0.5 | AT139: 0
L140: 0 | O140: 0 | U140: 7.9 | Z140: 0 | AE140: 0 | AJ140: 0.4 | AO140: 0 | AT140: 4.8
L141: 0 | O141: 0 | U141: 4.3 | Z141: 12 | AE141: 0 | AJ141: 15 | AO141: 0 | AT141: 2.6
L142: 8 | O142: 0 | U142: 0 | Z142: 1.4 | AE142: 0 | AJ142: 1.1 | AO142: 0 | AT142: 0
L143: 3.1 | O143: 0 | U143: 0 | Z143: 1 | AE143: 0 | AJ143: 1.8 | AO143: 0 | AT143: 0
L144: 5.5 | O144: 0 | U144: 0 | Z144: 0.6 | AE144: 0 | AJ144: 1.1 | AO144: 0 | AT144: 0
L145: 0.2 | O145: 0 | U145: 0 | Z145: 0.8 | AE145: 0 | AJ145: 2 | AO145: 0 | AT145: 0
L146: 0 | O146: 0 | U146: 0 | Z146: 0 | AE146: 0 | AJ146: 29 | AO146: 0 | AT146: 0
L147: 0 | O147: 0 | U147: 0 | Z147: 0 | AE147: 0 | AJ147: 1.4 | AO147: 0 | AT147: 0
L148: 0 | O148: 0 | U148: 0 | Z148: 0 | AE148: 0 | AJ148: 1.8 | AO148: 0 | AT148: 0
L149: 0 | O149: 0 | U149: 0 | Z149: 0 | AE149: 0 | AJ149: 0 | AO149: 0 | AT149: 0
L150: 0 | O150: 0 | U150: 0 | Z150: 0 | AE150: 0 | AJ150: 0 | AO150: 0 | AT150: 0
L151: 0 | O151: 0 | U151: 13 | Z151: 0.2 | AE151: 0 | AJ151: 3.2 | AO151: 0 | AT151: 0
L152: 0 | O152: 0 | U152: 7.4 | Z152: 2.2 | AE152: 0 | AJ152: 2.4 | AO152: 0 | AT152: 0
L153: 0 | O153: 0 | U153: 5.8 | Z153: 1 | AE153: 0 | AJ153: 3.1 | AO153: 0 | AT153: 1.6
L154: 0 | O154: 0 | U154: 0 | Z154: 1.2 | AE154: 0 | AJ154: 0.2 | AO154: 0 | AT154: 0
L155: 0 | O155: 0 | U155: 0 | Z155: 0 | AE155: 0 | AJ155: 0 | AO155: 0 | AT155: 0
L156: 0 | O156: 0 | U156: 0 | Z156: 0 | AE156: 1.1 | AJ156: 0.4 | AO156: 0 | AT156: 0
L157: 0 | O157: 0 | U157: 15.5 | Z157: 0 | AE157: 0 | AJ157: 0 | AO157: 0 | AT157: 0
L158: 0.2 | O158: 0 | U158: 54.4 | Z158: 0 | AE158: 0 | AJ158: 0.6 | AO158: 0 | AT158: 0
L159: 0.6 | O159: 0 | U159: 14.2 | Z159: 3 | AE159: 0 | AJ159: 0 | AO159: 0 | AT159: 0
L160: 0 | O160: 0 | U160: 19.6 | Z160: 0 | AE160: 0 | AJ160: 0.4 | AO160: 0 | AT160: 0
L161: 0.4 | O161: 0 | U161: 0.5 | Z161: 0 | AE161: 0 | AJ161: 0.2 | AO161: 0 | AT161: 0
L162: 0 | O162: 0 | U162: 0 | Z162: 0.8 | AE162: 0 | AJ162: 0.1 | AO162: 0 | AT162: 0
L163: 0 | O163: 0 | U163: 24.9 | Z163: 3 | AE163: 0 | AJ163: 2 | AO163: 0 | AT163: 0
L164: 0 | O164: 0 | U164: 2.5 | Z164: 8.8 | AE164: 0 | AJ164: 1.6 | AO164: 0 | AT164: 0
L165: 0 | O165: 0 | U165: 4.3 | Z165: 0 | AE165: 0 | AJ165: 0.4 | AO165: 0 | AT165: 0
L166: 0.2 | O166: 0 | U166: 2 | Z166: 0 | AE166: 0 | AJ166: 0 | AO166: 0 | AT166: 0
L167: 9.2 | O167: 0 | U167: 0.3 | Z167: 0 | AE167: 1 | AJ167: 0 | AO167: 0 | AT167: 0
L168: 4.2 | O168: 0 | U168: 0 | Z168: 0 | AE168: 3 | AJ168: 0 | AO168: 0 | AT168: 0
L169: 5.7 | O169: 0 | U169: 14.7 | Z169: 1 | AE169: 4 | AJ169: 0 | AO169: 0 | AT169: 0
L170: 0.1 | O170: 0 | U170: 3.3 | Z170: 5.8 | AE170: 0 | AJ170: 3 | AO170: 0 | AT170: 0
L171: 0.5 | O171: 0 | U171: 1.5 | Z171: 3.4 | AE171: 0 | AJ171: 0 | AO171: 0 | AT171: 0
L172: 2.2 | O172: 0 | U172: 6.6 | Z172: 0.8 | AE172: 0 | AJ172: 0 | AO172: 0 | AT172: 0
L173: 0 | O173: 21.9 | U173: 0.5 | Z173: 0.4 | AE173: 0 | AJ173: 1.4 | AO173: 0 | AT173: 0
L174: 0 | O174: 6.2 | U174: 0 | Z174: 0 | AE174: 0 | AJ174: 2 | AO174: 0 | AT174: 0
L175: 0 | O175: 0 | U175: 19.3 | Z175: 0 | AE175: 0 | AJ175: 0.2 | AO175: 0 | AT175: 0
L176: 2.9 | O176: 34.7 | U176: 18 | Z176: 0 | AE176: 12 | AJ176: 0 | AO176: 0 | AT176: 0
L177: 1.7 | O177: 56.2 | U177: 3.8 | Z177: 0 | AE177: 10 | AJ177: 0 | AO177: 0 | AT177: 0
L178: 4.1 | O178: 22.3 | U178: 7.4 | Z178: 0 | AE178: 25 | AJ178: 0 | AO178: 0 | AT178: 0.4
L179: 4.7 | O179: 0.3 | U179: 5.1 | Z179: 0 | AE179: 0 | AJ179: 1.4 | AO179: 0 | AT179: 6.6
L180: 0 | O180: 45.1 | U180: 2 | Z180: 0 | AE180: 0 | AJ180: 2.5 | AO180: 0 | AT180: 36.6
L181: 0.5 | O181: 104.1 | U181: 31 | Z181: 0.2 | AE181: 0 | AJ181: 4.2 | AO181: 0 | AT181: 3.6
L182: 0.3 | O182: 32.1 | U182: 6.6 | Z182: 0 | AE182: 0 | AJ182: 1.8 | AO182: 0 | AT182: 2.4
L183: 0 | O183: 5.5 | U183: 16.8 | Z183: 0 | AE183: 0 | AJ183: 0.8 | AO183: 0 | AT183: 0
L184: 0 | O184: 8.2 | U184: 1 | Z184: 0.4 | AE184: 0 | AJ184: 2 | AO184: 0 | AT184: 30
L185: 0 | O185: 0 | U185: 13.7 | Z185: 0 | AE185: 0 | AJ185: 0.6 | AO185: 0 | AT185: 0.4
L186: 0 | O186: 7.9 | U186: 5.1 | Z186: 0.4 | AE186: 0 | AJ186: 0.1 | AO186: 13 | AT186: 0.4
L187: 0 | O187: 11.1 | U187: 6.9 | Z187: 1.2 | AE187: 0 | AJ187: 0 | AO187: 3.6 | AT187: 3
L188: 4.2 | O188: 0 | U188: 1.3 | Z188: 0 | AE188: 0 | AJ188: 3 | AO188: 0 | AT188: 0
L189: 0 | O189: 0 | U189: 3.6 | Z189: 0 | AE189: 2 | AJ189: 0.1 | AO189: 0 | AT189: 0
L190: 0 | O190: 0 | U190: 15.5 | Z190: 0 | AE190: 7 | AJ190: 0 | AO190: 0 | AT190: 0
L191: 0 | O191: 0 | U191: 2.8 | Z191: 0 | AE191: 7 | AJ191: 0 | AO191: 0 | AT191: 3.2
L192: 0 | O192: 0 | U192: 4.8 | Z192: 0.2 | AE192: 0 | AJ192: 0 | AO192: 0 | AT192: 10.2
L193: 0 | O193: 12.2 | U193: 0.5 | Z193: 3.8 | AE193: 0 | AJ193: 15.8 | AO193: 0 | AT193: 1
L194: 0 | O194: 18.6 | U194: 8.4 | Z194: 3.8 | AE194: 0 | AJ194: 16.2 | AO194: 0 | AT194: 0
L195: 0 | O195: 0 | U195: 1.5 | Z195: 5.6 | AE195: 0 | AJ195: 8.2 | AO195: 0 | AT195: 4.4
L196: 2.2 | O196: 0 | U196: 0 | Z196: 1.6 | AE196: 0 | AJ196: 0.4 | AO196: 0 | AT196: 0
L197: 0.4 | O197: 0 | U197: 0 | Z197: 0 | AE197: 0 | AJ197: 0.3 | AO197: 0 | AT197: 0
L198: 1.2 | O198: 0 | U198: 0 | Z198: 0 | AE198: 0 | AJ198: 0 | AO198: 0 | AT198: 0
L199: 0 | O199: 0 | U199: 0 | Z199: 1.4 | AE199: 0 | AJ199: 4 | AO199: 0 | AT199: 0
L200: 0 | O200: 0 | U200: 0 | Z200: 5 | AE200: 0 | AJ200: 1.2 | AO200: 0 | AT200: 0
L201: 0 | O201: 0 | U201: 0.5 | Z201: 1 | AE201: 0 | AJ201: 5.8 | AO201: 0 | AT201: 34
L202: 0 | O202: 0 | U202: 0 | Z202: 1 | AE202: 0 | AJ202: 2 | AO202: 0 | AT202: 17.8
L203: 0 | O203: 0 | U203: 0 | Z203: 0.6 | AE203: 0 | AJ203: 2.1 | AO203: 0 | AT203: 0
... 922 more rows

Sheet Notes
B2: Version: | C2: 3.0 August 2018
B76: Roof Area | K76: Initial loss
B77: Connected roof area to raintank shall be selected. | K77: Initial loss for roof surface type is suggested:
L78: Iron | M78: 0.5mm
L79: Terracotta | M79: 1.0mm
L80: Concrete | M80: 1.5mm
B81: Inhouse Demand
B82: Refer to Section 8.3 of "WSUD (Argue, 2004): basic procedures for 'source control'
B83: of stormwater " (Argue 2004)
B84: http://www.unisa.edu.au/uwrc/uwrc.htm
B85: Other in-house demand characteristics are presented in Coombes (2003): | K85: First flush
B86: "Analysis of Performance of Rainwater Tanks in Australian Capital Cities" | K86: First flush systems typically collect the first portion of
B87: http://www.eng.newcastle.edu.au/~cegak/Coombes/index.htm | K87: roof runoff in a small collection storage uspstream of the tank .
K88: First flush volume collected is manually
B89: Suggested average in-house daily demands (L/day) adapted from Coombes (2003). | K89: released or slowly empties via a low flow drain.
K90: If there is no first flush collector, this volume is zero.
D91: In-house demand (number of occupants)
D92: 1 | E92: 2 | F92: 3 | G92: 4 | H92: 5+
C93: Adelaide | D93: 180 | E93: 325 | F93: 470 | G93: 615 | H93: 760
C94: Brisbane | D94: 120 | E94: 210 | F94: 340 | G94: 500 | H94: 580
C95: Melbourne | D95: 140 | E95: 285 | F95: 420 | G95: 570 | H95: 710
C96: Sydney | D96: 235 | E96: 445 | F96: 670 | G96: 880 | H96: 1100
C102: Irrigation
C103: Irrigation average monthly values are based on demand requirments as determined by Connellan 2002
C104: http://www.southeastwater.com.au/sewl/upload/document/WaterConManual.pdf
C106: Irrigation Data Assumptions
D108: Plant | E108: Turf | I108: Soil type | J108: Sandy loam
D109: Irrigation | E109: Sprinklers | I109: Root zone depth | J109: 150 | K109: mm
D110: Plant available water(PAW) | E110: =J109*J110/1000 -> 16.5 | F110: mm | I110: Avail holding capacity | J110: 110 | K110: mm
D111: % allowable depletion | E111: 0.5
D112: Application efficiency | E112: 0.75
D113: Irrigation depth | E113: =E111*E110/E112 -> 11 | F113: mm
C115: The model assumes irrigation is applied when rainfall is less than 2 mm (total
C116: in the previous three days. Irrigation by fixed-time systems are not sensitive to antecedent
C117: rainfall; they therefore use significantly greater quantities of water than manual systems
C118: operated on a needs-only basis.
C120: Irrigation (monthly) Data
C121: The ‘comprehensive’ file created for local data input (see above) retains all of the
C122: irrigation (monthly) values included in the original software (Adelaide, Brisbane,
C123: Canberra, etc) unless these data sets are altered. Click on the city closest to the local area
C124: and decide whether these data are satisfactory for use in full (in-house and outdoor)
C125: raintank sizing. [If they are, then this irrigation set will reappear each time the
C126: ‘comprehensive’ file is called up: simply press “ENTER” on each occasion of use.]
C127: However, if none of the listed cities is close to the local area of interest, then a new
C128: (monthly) irrigation set must be entered, replacing that listed for the closest city. The
C129: replacement data should, ideally, be drawn from good local practice; alternatively, the
C130: new set could be interpolated from the data listed for the two cities between which the
C131: local area is placed. Once the new data are determined and listed, they will reappear each
C132: time the ‘comprehensive’ file is called up: simply press “ENTER” on each occasion of use.
C143: Pasting local rainfall data
C145: If the software is to be used with local rainfall data, then you are advised to create two
C146: new “save as….” files devoted to the local data (only): one is used for ‘sizing’ raintanks
C147: for in-house water use only (the “in-house” file); the other produces tank storage volumes
C148: for cases of (both) in-house and outdoor irrigation operation (the “comprehensive” file).
C149: In both files, paste rainfall data (replacement) in the far left column of the sheet. [Pasting
C150: of irrigation data is explained below – Irrigation (monthly) Data] Ensure that the new
C151: data column does not include gaps: rainfall for each day must show “0” or some other
C152: value in mm.
C154: Starting day
C155: All rainfall data provided in the original software (Adelaide, Brisbane, Canberra, etc)
C156: commences on the 1st day of the (first) calendar year of the record. [This is signified by
C157: the numeral “1” in the blue cell immediately above the cities list.] If local data to be
C158: pasted do not commence on January 1 (of the first year of record), then the numeral in the
C159: blue cell must be altered to reflect this. For example: if the record starts on February 20,
C160: which is the 51st day of the year, then the numeral in the blue cell must be altered to “51”.

Sheet INPUT SHEET
Y2: Number of
R3: In-house daily demand | S3: =E6 -> 150 | T3: L | W3: Annual | X3: % of tot deman | Y3: no supply days | Z3: =+data!E42 -> 0.4
R4: Ave. annual inhouse demand | S4: =S3*365/1000 -> 54.75 | T4: kL/yr | V4: Tank volume | W4: yield, kL | X4: supplied | Z4: =(W6-W15)/(V6-V15) -> 0.004820213968 | AA4: =MAX(AA6:AA14) -> 7.099536906 | AC4: =VLOOKUP(1,AB7:AC13,2,FALSE) -> 2000 | AE4: =VLOOKUP(1,$AB7:AE13,4,FALSE) -> 39.70878771 | AF4: =VLOOKUP(1,$AB7:AF13,5,FALSE) -> 92.19420542
D5: Connected roof Area | E5: 200 | F5: m2 | M5: Rainfall input data years | N5: =S13 -> 25.15342466 | O5: yr | R5: initial loss | S5: =E8 -> 0.5 | T5: mm | V5: =S10 -> 5000 | W5: =SUM(V20:V65536)/S13/1000 -> 47.06989271 | X5: =W5/(S4+S7) -> 0.8575309704 | Y5: =S16 -> 48.34331772 | Z5: Cost $/kL
D6: In-house daily demand | E6: 150 | F6: L | M6: Average annual rainfall | N6: =S11 -> 547.8538286 | O6: mm/yr | R6: first flush loss | S6: =E9 -> 0 | V6: 500 | W6: 25.37892986 | X6: 0.4623596336 | Y6: 177.6298878 | Z6: =(data!$G$22*V6^data!$H$22+data!$I$22)/W6+0.05 +$Z$3 -> 7.613998127 | AC6: =V6 -> 500 | AD6: =W6+$AA$4 -> 32.47846676
D7: Irrigation area | E7: 0 | F7: m2 | M7: Average annual inhouse demand | N7: =S4 -> 54.75 | O7: kL/yr | R7: Ave. annual irrigation demand | S7: =W18/S13/1000 -> 0.1400206949 | T7: kL/yr | V7: 1000 | W7: 32.7304139 | X7: 0.5962907917 | Y7: 130.2804705 | Z7: =(data!$G$22*V7^data!$H$22+data!$I$22)/W7+0.05 +$Z$3 -> 6.004913131 | AA7: =W7-($W$6+(V7-$V$6)*$Z$4) -> 4.941377059 | AB7: =IF(AA7>AA6,IF(AA7>AA8,1,0),0) -> 0 | AC7: 1000 | AE7: =W7 -> 32.7304139 | AF7: =Y7 -> 130.2804705
D8: initial loss | E8: 0.5 | F8: mm | M8: Average annual irrigation demand | N8: =S7 -> 0.1400206949 | O8: kL/yr | R8: Tank volumes | S8: 750 | T8: L | V8: 1500 | W8: 37.0622296 | X8: 0.6752088838 | Y8: 107.0232001 | Z8: =(data!$G$22*V8^data!$H$22+data!$I$22)/W8+0.05 +$Z$3 -> 5.355657535 | AA8: =W8-($W$6+(V8-$V$6)*$Z$4) -> 6.863085781 | AB8: =IF(AA8>AA7,IF(AA8>AA9,1,0),0) -> 0 | AC8: 1500 | AE8: =W8 -> 37.0622296 | AF8: =Y8 -> 107.0232001
D9: first flush loss | E9: 0 | F9: litres | L9: Tank selection | S9: 5000 | V9: 2000 | W9: 39.70878771 | X9: 0.7234245353 | Y9: 92.19420542 | Z9: =(data!$G$22*V9^data!$H$22+data!$I$22)/W9+0.05 +$Z$3 -> 5.028699487 | AA9: 7.099536906 | AB9: 1 | AC9: 2000 | AE9: 39.70878771 | AF9: 92.19420542
C10: Tank sizes selected for consideration | M10: Suggested tank size is approx. | N10: =INT(AC4/100)*100 -> 2000 | O10: L | R10: active tank volume | S10: 5000 | V10: 2500 | W10: 41.67186036 | X10: 0.7591882793 | Y10: 80.38666812 | Z10: =(data!$G$22*V10^data!$H$22+data!$I$22)/W10+0.05 +$Z$3 -> 4.813006699 | AA10: 6.652502572 | AB10: 0 | AC10: 2500 | AE10: 41.67186036 | AF10: 80.38666812
D11: Smallest tank volume | E11: 500 | F11: L | M11: Average annual yield | N11: =AE4 -> 39.70878771 | O11: kL/yr | R11: Average annual rainfall | S11: =SUM(A20:A65536)/S13 -> 547.8538286 | T11: mm | V11: 3000 | W11: 43.27168228 | X11: 0.7883342314 | Y11: 71.08375994 | Z11: =(data!$G$22*V11^data!$H$22+data!$I$22)/W11+0.05 +$Z$3 -> 4.651699503 | AA11: 5.842217502 | AB11: 0 | AC11: 3000 | AE11: 43.27168228 | AF11: 71.08375994
D12: Largest tank volume | E12: 5000 | F12: L | M12: Aver. number of days with zero supply | N12: =AF4 -> 92.19420542 | O12: days/yr | R12: no rain days per year | S12: =COUNTIF(A20:A65536,0)/S13 -> 240.364884 | V12: 3500 | W12: 44.58963403 | X12: 0.812345003 | Y12: 63.33133646 | Z12: =(data!$G$22*V12^data!$H$22+data!$I$22)/W12+0.05 +$Z$3 -> 4.527508369 | AA12: 4.750062266 | AB12: 0 | AC12: 3500 | AE12: 44.58963403 | AF12: 63.33133646
M13: % of total demand supplied by tank | N13: =N11/(N7+N8) -> 0.7234245353 | R13: rainfall years | S13: =S14/365 -> 25.15342466 | V13: 4000 | W13: 45.56727426 | X13: 0.8301558951 | Y13: 57.36793378 | Z13: =(data!$G$22*V13^data!$H$22+data!$I$22)/W13+0.05 +$Z$3 -> 4.440025931 | AA13: 3.317595517 | AB13: 0 | AC13: 4000 | AE13: 45.56727426 | AF13: 57.36793378
E14: IRRIGATION | R14: input data days | S14: =COUNTA(A20:A65536) -> 9181 | V14: 4500 | W14: 46.37336728 | X14: 0.8448414975 | Y14: 52.59721163 | Z14: =(data!$G$22*V14^data!$H$22+data!$I$22)/W14+0.05 +$Z$3 -> 4.370668621 | AA14: 1.713581551 | AB14: 0 | AC14: 4500 | AE14: =W14 -> 46.37336728 | AF14: 52.59721163
D15: Month | E15: Ave. Irr. mm | R15: number of days with zero or part supply | S15: =COUNTIF(U20:U65536,0)/S13 -> 53.15379588 | V15: 5000 | W15: 47.06989271 | X15: 0.8575309704 | Y15: 48.34331772 | Z15: =(data!$G$22*V15^data!$H$22+data!$I$22)/W15+0.05 +$Z$3 -> 4.312651802 | AA15: 0 | AB15: =IF(AA15>AA14,IF(AA15>AA16,1,0),0) -> 0 | AC15: =V15 -> 5000 | AD15: =W15+$AA$4 -> 54.16942962
E16: Brisbane | R16: number of days with zero supply | S16: =COUNTIF(V20:V65536,0)/S13 -> 48.34331772 | U16: Tank status | V16: 1010 | W16: 43.21638166 | X16: 0.5920052282 | Y16: 132.7453436
D17: Janurary | E17: 115.0361446 | U17: at end day | V17: 1011 | W17: 43.22922285 | X17: 0.592181135 | Y17: 132.5465636
B18: 1 | D18: Febuary | E18: 92.77108434 | R18: rainfall | W18: =SUM(W20:W65536) -> 3522
A19: Adelaide | D19: March | E19: 92.43975904 | R19: 1 | T19: Runoff | U19: 0 | V19: Supply | W19: irrigation | AA19: irrigation lookuptable | AD19: irrigation break | AE19: 2 | AK19: Adelaide
A20: 3.4 | D20: April | E20: 73.55421687 | R20: =IF(R19=365,1,R19+1) -> 2 | S20: 3.4 | T20: =IF(S20>$S$5,(S20-$S$5)*$E$5-$S$6,0) -> 580 | U20: =IF((U19+T20)<(V20),0,IF((U19+T20-V20)>$S$10,($S$10-$S$3/2),(T20+U19-V20))) -> 429 | V20: =IF(U19+T20<($S$3+W20),(U19+T20/2),($S$3+W20)) -> 151 | W20: =IF((SUM(S18:S20))<$AE$19,(VLOOKUP(R20,$Z$20:$AA$384,2,FALSE)/30*$E$7),1) -> 1 | Z20: 1 | AA20: =$E$17 -> 115.0361446 | AB20: 1 | AK20: 3.4
A21: 0 | D21: May | E21: 0 | R21: 3 | S21: 0 | T21: =IF(S21>$S$5,(S21-$S$5)*$E$5-$S$6,0) -> 0 | U21: =IF((U20+T21)<(V21),0,IF((U20+T21-V21)>$S$10,($S$10-$S$3/2),(T21+U20-V21))) -> 278 | V21: =IF(U20+T21<($S$3+W21),(U20+T21/2),($S$3+W21)) -> 151 | W21: =IF((SUM(S19:S21))<$AE$19,(VLOOKUP(R21,$Z$20:$AA$384,2,FALSE)/30*$E$7),1) -> 1 | Z21: =IF(Z20=365,1,Z20+1) -> 2 | AA21: 115.0361446 | AB21: 2 | AK21: 0
A22: 0 | D22: June | E22: 0 | R22: 4 | S22: 0 | T22: 0 | U22: 127 | V22: 151 | W22: 1 | Z22: 3 | AA22: 115.0361446 | AB22: 3 | AK22: 0
A23: 0 | D23: July | E23: 0 | R23: 5 | S23: 0 | T23: 0 | U23: 0 | V23: 127 | W23: 0 | Z23: 4 | AA23: 115.0361446 | AB23: 4 | AK23: 0
A24: 0 | D24: August | E24: 0 | R24: 6 | S24: 0 | T24: 0 | U24: 0 | V24: 0 | W24: 0 | Z24: 5 | AA24: 115.0361446 | AB24: 5 | AK24: 0
A25: 0 | D25: September | E25: 83.4939759 | R25: 7 | S25: 0 | T25: 0 | U25: 0 | V25: 0 | W25: 0 | Z25: 6 | AA25: 115.0361446 | AB25: 6 | AK25: 0
A26: 0 | D26: October | E26: 98.60240964 | R26: 8 | S26: 0 | T26: 0 | U26: 0 | V26: 0 | W26: 0 | Z26: 7 | AA26: 115.0361446 | AB26: 7 | AK26: 0
A27: 0 | D27: November | E27: 109.3373494 | R27: 9 | S27: 0 | T27: 0 | U27: 0 | V27: 0 | W27: 0 | Z27: 8 | AA27: 115.0361446 | AB27: 8 | AK27: 0
A28: 0 | D28: December | E28: 129.4156627 | R28: 10 | S28: 0 | T28: 0 | U28: 0 | V28: 0 | W28: 0 | Z28: 9 | AA28: 115.0361446 | AB28: 9 | AK28: 0
A29: 14 | R29: 11 | S29: 14 | T29: 2700 | U29: 2549 | V29: 151 | W29: 1 | Z29: 10 | AA29: 115.0361446 | AB29: 10 | AK29: 14
A30: 0 | R30: 12 | S30: 0 | T30: 0 | U30: 2398 | V30: 151 | W30: 1 | Z30: 11 | AA30: 115.0361446 | AB30: 11 | AK30: 0
A31: 0 | R31: 13 | S31: 0 | T31: 0 | U31: 2247 | V31: 151 | W31: 1 | Z31: 12 | AA31: 115.0361446 | AB31: 12 | AK31: 0
A32: 0 | R32: 14 | S32: 0 | T32: 0 | U32: 2097 | V32: 150 | W32: 0 | Z32: 13 | AA32: 115.0361446 | AB32: 13 | AK32: 0
A33: 0 | R33: 15 | S33: 0 | T33: 0 | U33: 1947 | V33: 150 | W33: 0 | Z33: 14 | AA33: 115.0361446 | AB33: 14 | AK33: 0
A34: 0 | R34: 16 | S34: 0 | T34: 0 | U34: 1797 | V34: 150 | W34: 0 | Z34: 15 | AA34: 115.0361446 | AB34: 15 | AK34: 0
A35: 0 | R35: 17 | S35: 0 | T35: 0 | U35: 1647 | V35: 150 | W35: 0 | Z35: 16 | AA35: 115.0361446 | AB35: 16 | AK35: 0
A36: 0 | R36: 18 | S36: 0 | T36: 0 | U36: 1497 | V36: 150 | W36: 0 | Z36: 17 | AA36: 115.0361446 | AB36: 17 | AK36: 0
A37: 0 | D37: COSTING DETAILS | R37: 19 | S37: 0 | T37: 0 | U37: 1347 | V37: 150 | W37: 0 | Z37: 18 | AA37: 115.0361446 | AB37: 18 | AK37: 0
A38: 0 | R38: 20 | S38: 0 | T38: 0 | U38: 1197 | V38: 150 | W38: 0 | Z38: 19 | AA38: 115.0361446 | AB38: 19 | AK38: 0
A39: 0 | R39: 21 | S39: 0 | T39: 0 | U39: 1047 | V39: 150 | W39: 0 | Z39: 20 | AA39: 115.0361446 | AB39: 20 | AK39: 0
A40: 0 | R40: 22 | S40: 0 | T40: 0 | U40: 897 | V40: 150 | W40: 0 | Z40: 21 | AA40: 115.0361446 | AB40: 21 | AK40: 0
A41: 0 | R41: 23 | S41: 0 | T41: 0 | U41: 747 | V41: 150 | W41: 0 | Z41: 22 | AA41: 115.0361446 | AB41: 22 | AK41: 0
A42: 0 | R42: 24 | S42: 0 | T42: 0 | U42: 597 | V42: 150 | W42: 0 | Z42: 23 | AA42: 115.0361446 | AB42: 23 | AK42: 0
A43: 0 | R43: 25 | S43: 0 | T43: 0 | U43: 447 | V43: 150 | W43: 0 | Z43: 24 | AA43: 115.0361446 | AB43: 24 | AK43: 0
A44: 0 | R44: 26 | S44: 0 | T44: 0 | U44: 297 | V44: 150 | W44: 0 | Z44: 25 | AA44: 115.0361446 | AB44: 25 | AK44: 0
A45: 0 | R45: 27 | S45: 0 | T45: 0 | U45: 147 | V45: 150 | W45: 0 | Z45: 26 | AA45: 115.0361446 | AB45: 26 | AK45: 0
A46: 0 | R46: 28 | S46: 0 | T46: 0 | U46: 0 | V46: 147 | W46: 0 | Z46: 27 | AA46: 115.0361446 | AB46: 27 | AK46: 0
A47: 0 | R47: 29 | S47: 0 | T47: 0 | U47: 0 | V47: 0 | W47: 0 | Z47: 28 | AA47: 115.0361446 | AB47: 28 | AK47: 0
A48: 0 | R48: 30 | S48: 0 | T48: 0 | U48: 0 | V48: 0 | W48: 0 | Z48: 29 | AA48: 115.0361446 | AB48: 29 | AK48: 0
A49: 0 | R49: 31 | S49: 0 | T49: 0 | U49: 0 | V49: 0 | W49: 0 | Z49: 30 | AA49: 115.0361446 | AB49: 30 | AK49: 0
A50: 0 | R50: 32 | S50: 0 | T50: 0 | U50: 0 | V50: 0 | W50: 0 | Z50: 31 | AA50: 115.0361446 | AB50: 31 | AK50: 0
A51: 6.4 | R51: 33 | S51: 6.4 | T51: 1180 | U51: 1029 | V51: 151 | W51: 1 | Z51: 32 | AA51: =$E$18 -> 92.77108434 | AB51: 1 | AK51: 6.4
A52: 0 | R52: 34 | S52: 0 | T52: 0 | U52: 878 | V52: 151 | W52: 1 | Z52: 33 | AA52: 92.77108434 | AB52: =IF(AB51=365,1,AB51+1) -> 2 | AK52: 0
A53: 0 | R53: 35 | S53: 0 | T53: 0 | U53: 727 | V53: 151 | W53: 1 | Z53: =IF(Z52=365,1,Z52+1) -> 34 | AA53: 92.77108434 | AB53: 3 | AK53: 0
A54: 0 | R54: 36 | S54: 0 | T54: 0 | U54: 577 | V54: 150 | W54: 0 | Z54: 35 | AA54: 92.77108434 | AB54: 4 | AK54: 0
A55: 0 | R55: 37 | S55: 0 | T55: 0 | U55: 427 | V55: 150 | W55: 0 | Z55: 36 | AA55: 92.77108434 | AB55: 5 | AK55: 0
A56: 0 | R56: 38 | S56: 0 | T56: 0 | U56: 277 | V56: 150 | W56: 0 | Z56: 37 | AA56: 92.77108434 | AB56: 6 | AK56: 0
A57: 0 | R57: 39 | S57: 0 | T57: 0 | U57: 127 | V57: 150 | W57: 0 | Z57: 38 | AA57: 92.77108434 | AB57: 7 | AK57: 0
A58: 0 | R58: 40 | S58: 0 | T58: 0 | U58: 0 | V58: 127 | W58: 0 | Z58: 39 | AA58: 92.77108434 | AB58: 8 | AK58: 0
A59: 2.3 | R59: 41 | S59: 2.3 | T59: 360 | U59: 209 | V59: 151 | W59: 1 | Z59: 40 | AA59: 92.77108434 | AB59: 9 | AK59: 2.3
A60: 1.7 | R60: 42 | S60: 1.7 | T60: 240 | U60: 298 | V60: 151 | W60: 1 | Z60: 41 | AA60: 92.77108434 | AB60: 10 | AK60: 1.7
A61: 10.7 | R61: 43 | S61: 10.7 | T61: 2040 | U61: 2187 | V61: 151 | W61: 1 | Z61: 42 | AA61: 92.77108434 | AB61: 11 | AK61: 10.7
A62: 8.1 | R62: 44 | S62: 8.1 | T62: 1520 | U62: 3556 | V62: 151 | W62: 1 | Z62: 43 | AA62: 92.77108434 | AB62: 12 | AK62: 8.1
A63: 1.5 | R63: 45 | S63: 1.5 | T63: 200 | U63: 3605 | V63: 151 | W63: 1 | Z63: 44 | AA63: 92.77108434 | AB63: 13 | AK63: 1.5
A64: 0 | R64: 46 | S64: 0 | T64: 0 | U64: 3454 | V64: 151 | W64: 1 | Z64: 45 | AA64: 92.77108434 | AB64: 14 | AK64: 0
A65: 1.8 | R65: 47 | S65: 1.8 | T65: 260 | U65: 3563 | V65: 151 | W65: 1 | Z65: 46 | AA65: 92.77108434 | AB65: 15 | AK65: 1.8
A66: 0 | R66: 48 | S66: 0 | T66: 0 | U66: 3413 | V66: 150 | W66: 0 | Z66: 47 | AA66: 92.77108434 | AB66: 16 | AK66: 0
A67: 1.4 | R67: 49 | S67: 1.4 | T67: 180 | U67: 3442 | V67: 151 | W67: 1 | Z67: 48 | AA67: 92.77108434 | AB67: 17 | AK67: 1.4
A68: 0 | R68: 50 | S68: 0 | T68: 0 | U68: 3292 | V68: 150 | W68: 0 | Z68: 49 | AA68: 92.77108434 | AB68: 18 | AK68: 0
A69: 0 | R69: 51 | S69: 0 | T69: 0 | U69: 3142 | V69: 150 | W69: 0 | Z69: 50 | AA69: 92.77108434 | AB69: 19 | AK69: 0
A70: 0 | R70: 52 | S70: 0 | T70: 0 | U70: 2992 | V70: 150 | W70: 0 | Z70: 51 | AA70: 92.77108434 | AB70: 20 | AK70: 0
A71: 0 | R71: 53 | S71: 0 | T71: 0 | U71: 2842 | V71: 150 | W71: 0 | Z71: 52 | AA71: 92.77108434 | AB71: 21 | AK71: 0
A72: 1 | R72: 54 | S72: 1 | T72: 100 | U72: 2792 | V72: 150 | W72: 0 | Z72: 53 | AA72: 92.77108434 | AB72: 22 | AK72: 1
A73: 14.4 | R73: 55 | S73: 14.4 | T73: 2780 | U73: 4925 | V73: 151 | W73: 1 | Z73: 54 | AA73: 92.77108434 | AB73: 23 | AK73: 14.4
A74: 3.3 | R74: 56 | S74: 3.3 | T74: 560 | U74: 4925 | V74: 151 | W74: 1 | Z74: 55 | AA74: 92.77108434 | AB74: 24 | AK74: 3.3
A75: 3.9 | R75: 57 | S75: 3.9 | T75: 680 | U75: 4925 | V75: 151 | W75: 1 | Z75: 56 | AA75: 92.77108434 | AB75: 25 | AK75: 3.9
A76: 0 | R76: 58 | S76: 0 | T76: 0 | U76: 4774 | V76: 151 | W76: 1 | Z76: 57 | AA76: 92.77108434 | AB76: 26 | AK76: 0
A77: 0 | R77: 59 | S77: 0 | T77: 0 | U77: 4623 | V77: 151 | W77: 1 | Z77: 58 | AA77: 92.77108434 | AB77: 27 | AK77: 0
A78: 0 | R78: 60 | S78: 0 | T78: 0 | U78: 4473 | V78: 150 | W78: 0 | Z78: 59 | AA78: 92.77108434 | AB78: 28 | AK78: 0
A79: 0 | R79: 61 | S79: 0 | T79: 0 | U79: 4323 | V79: 150 | W79: 0 | Z79: 60 | AA79: =$E$19 -> 92.43975904 | AB79: 1 | AK79: 0
A80: 0 | R80: 62 | S80: 0 | T80: 0 | U80: 4173 | V80: 150 | W80: 0 | Z80: 61 | AA80: 92.43975904 | AB80: =IF(AB79=365,1,AB79+1) -> 2 | AK80: 0
A81: 0 | R81: 63 | S81: 0 | T81: 0 | U81: 4023 | V81: 150 | W81: 0 | Z81: 62 | AA81: 92.43975904 | AB81: 3 | AK81: 0
A82: 0 | R82: 64 | S82: 0 | T82: 0 | U82: 3873 | V82: 150 | W82: 0 | Z82: 63 | AA82: 92.43975904 | AB82: 4 | AK82: 0
A83: 3 | R83: 65 | S83: 3 | T83: 500 | U83: 4222 | V83: 151 | W83: 1 | Z83: 64 | AA83: 92.43975904 | AB83: 5 | AK83: 3
A84: 0.2 | R84: =IF(R83=365,1,R83+1) -> 66 | S84: 0.2 | T84: 0 | U84: 4071 | V84: 151 | W84: 1 | Z84: 65 | AA84: 92.43975904 | AB84: 6 | AK84: 0.2
A85: 0.3 | R85: 67 | S85: 0.3 | T85: =IF(S85>$S$5,(S85-$S$5)*$E$5-$S$6,0) -> 0 | U85: =IF((U84+T85)<(V85),0,IF((U84+T85-V85)>$S$10,($S$10-$S$3/2),(T85+U84-V85))) -> 3920 | V85: =IF(U84+T85<($S$3+W85),(U84+T85/2),($S$3+W85)) -> 151 | W85: =IF((SUM(S83:S85))<$AE$19,(VLOOKUP(R85,$Z$20:$AA$384,2,FALSE)/30*$E$7),1) -> 1 | Z85: 66 | AA85: 92.43975904 | AB85: 7 | AK85: 0.3
A86: 0.1 | R86: 68 | S86: 0.1 | T86: 0 | U86: 3770 | V86: 150 | W86: 0 | Z86: =IF(Z85=365,1,Z85+1) -> 67 | AA86: 92.43975904 | AB86: =IF(AB85=365,1,AB85+1) -> 8 | AK86: 0.1
A87: 0 | R87: 69 | S87: 0 | T87: 0 | U87: 3620 | V87: 150 | W87: 0 | Z87: 68 | AA87: 92.43975904 | AB87: 9 | AK87: 0
A88: 0 | R88: 70 | S88: 0 | T88: 0 | U88: 3470 | V88: 150 | W88: 0 | Z88: 69 | AA88: 92.43975904 | AB88: 10 | AK88: 0
A89: 0 | R89: 71 | S89: 0 | T89: 0 | U89: 3320 | V89: 150 | W89: 0 | Z89: 70 | AA89: 92.43975904 | AB89: 11 | AK89: 0
A90: 0 | R90: 72 | S90: 0 | T90: 0 | U90: 3170 | V90: 150 | W90: 0 | Z90: 71 | AA90: 92.43975904 | AB90: 12 | AK90: 0
A91: 0 | R91: 73 | S91: 0 | T91: 0 | U91: 3020 | V91: 150 | W91: 0 | Z91: 72 | AA91: 92.43975904 | AB91: 13 | AK91: 0
A92: 0 | R92: 74 | S92: 0 | T92: 0 | U92: 2870 | V92: 150 | W92: 0 | Z92: 73 | AA92: 92.43975904 | AB92: 14 | AK92: 0
A93: 0 | R93: 75 | S93: 0 | T93: 0 | U93: 2720 | V93: 150 | W93: 0 | Z93: 74 | AA93: 92.43975904 | AB93: 15 | AK93: 0
A94: 0 | R94: 76 | S94: 0 | T94: 0 | U94: 2570 | V94: 150 | W94: 0 | Z94: 75 | AA94: 92.43975904 | AB94: 16 | AK94: 0
A95: 0 | R95: 77 | S95: 0 | T95: 0 | U95: 2420 | V95: 150 | W95: 0 | Z95: 76 | AA95: 92.43975904 | AB95: 17 | AK95: 0
A96: 0 | R96: 78 | S96: 0 | T96: 0 | U96: 2270 | V96: 150 | W96: 0 | Z96: 77 | AA96: 92.43975904 | AB96: 18 | AK96: 0
A97: 0 | R97: 79 | S97: 0 | T97: 0 | U97: 2120 | V97: 150 | W97: 0 | Z97: 78 | AA97: 92.43975904 | AB97: 19 | AK97: 0
A98: 0 | R98: 80 | S98: 0 | T98: 0 | U98: 1970 | V98: 150 | W98: 0 | Z98: 79 | AA98: 92.43975904 | AB98: 20 | AK98: 0
A99: 0 | R99: 81 | S99: 0 | T99: 0 | U99: 1820 | V99: 150 | W99: 0 | Z99: 80 | AA99: 92.43975904 | AB99: 21 | AK99: 0
A100: 0 | R100: 82 | S100: 0 | T100: 0 | U100: 1670 | V100: 150 | W100: 0 | Z100: 81 | AA100: 92.43975904 | AB100: 22 | AK100: 0
A101: 0 | R101: 83 | S101: 0 | T101: 0 | U101: 1520 | V101: 150 | W101: 0 | Z101: 82 | AA101: 92.43975904 | AB101: 23 | AK101: 0
A102: 4.8 | R102: 84 | S102: 4.8 | T102: 860 | U102: 2229 | V102: 151 | W102: 1 | Z102: 83 | AA102: 92.43975904 | AB102: 24 | AK102: 4.8
A103: 0 | R103: 85 | S103: 0 | T103: 0 | U103: 2078 | V103: 151 | W103: 1 | Z103: 84 | AA103: 92.43975904 | AB103: 25 | AK103: 0
A104: 0 | R104: 86 | S104: 0 | T104: 0 | U104: 1927 | V104: 151 | W104: 1 | Z104: 85 | AA104: 92.43975904 | AB104: 26 | AK104: 0
A105: 3 | R105: 87 | S105: 3 | T105: 500 | U105: 2276 | V105: 151 | W105: 1 | Z105: 86 | AA105: 92.43975904 | AB105: 27 | AK105: 3
A106: 6 | R106: 88 | S106: 6 | T106: 1100 | U106: 3225 | V106: 151 | W106: 1 | Z106: 87 | AA106: 92.43975904 | AB106: 28 | AK106: 6
A107: 1.6 | R107: 89 | S107: 1.6 | T107: 220 | U107: 3294 | V107: 151 | W107: 1 | Z107: 88 | AA107: 92.43975904 | AB107: 29 | AK107: 1.6
A108: 0 | R108: 90 | S108: 0 | T108: 0 | U108: 3143 | V108: 151 | W108: 1 | Z108: 89 | AA108: 92.43975904 | AB108: 30 | AK108: 0
A109: 0.8 | R109: 91 | S109: 0.8 | T109: 60 | U109: 3052 | V109: 151 | W109: 1 | Z109: 90 | AA109: 92.43975904 | AB109: 31 | AK109: 0.8
A110: 0 | R110: 92 | S110: 0 | T110: 0 | U110: 2902 | V110: 150 | W110: 0 | Z110: 91 | AA110: =$E$20 -> 73.55421687 | AB110: 1 | AK110: 0
A111: 0 | R111: 93 | S111: 0 | T111: 0 | U111: 2752 | V111: 150 | W111: 0 | Z111: 92 | AA111: 73.55421687 | AB111: =IF(AB110=365,1,AB110+1) -> 2 | AK111: 0
A112: 0 | R112: 94 | S112: 0 | T112: 0 | U112: 2602 | V112: 150 | W112: 0 | Z112: 93 | AA112: 73.55421687 | AB112: =IF(AB111=365,1,AB111+1) -> 3 | AK112: 0
A113: 0 | R113: 95 | S113: 0 | T113: 0 | U113: 2452 | V113: 150 | W113: 0 | Z113: 94 | AA113: 73.55421687 | AB113: 4 | AK113: 0
A114: 0 | R114: 96 | S114: 0 | T114: 0 | U114: 2302 | V114: 150 | W114: 0 | Z114: 95 | AA114: 73.55421687 | AB114: 5 | AK114: 0
A115: 0 | R115: 97 | S115: 0 | T115: 0 | U115: 2152 | V115: 150 | W115: 0 | Z115: 96 | AA115: 73.55421687 | AB115: 6 | AK115: 0
A116: 0 | R116: 98 | S116: 0 | T116: 0 | U116: 2002 | V116: 150 | W116: 0 | Z116: 97 | AA116: 73.55421687 | AB116: 7 | AK116: 0
A117: 4.3 | R117: 99 | S117: 4.3 | T117: 760 | U117: 2611 | V117: 151 | W117: 1 | Z117: 98 | AA117: 73.55421687 | AB117: 8 | AK117: 4.3
A118: 0 | R118: 100 | S118: 0 | T118: 0 | U118: 2460 | V118: 151 | W118: 1 | Z118: 99 | AA118: 73.55421687 | AB118: 9 | AK118: 0
A119: 0.2 | R119: 101 | S119: 0.2 | T119: 0 | U119: 2309 | V119: 151 | W119: 1 | Z119: 100 | AA119: 73.55421687 | AB119: 10 | AK119: 0.2
A120: 6.1 | R120: 102 | S120: 6.1 | T120: 1120 | U120: 3278 | V120: 151 | W120: 1 | Z120: 101 | AA120: 73.55421687 | AB120: 11 | AK120: 6.1
A121: 3.5 | R121: 103 | S121: 3.5 | T121: 600 | U121: 3727 | V121: 151 | W121: 1 | Z121: 102 | AA121: 73.55421687 | AB121: 12 | AK121: 3.5
A122: 0 | R122: 104 | S122: 0 | T122: 0 | U122: 3576 | V122: 151 | W122: 1 | Z122: 103 | AA122: 73.55421687 | AB122: 13 | AK122: 0
A123: 0 | R123: 105 | S123: 0 | T123: 0 | U123: 3425 | V123: 151 | W123: 1 | Z123: 104 | AA123: 73.55421687 | AB123: 14 | AK123: 0
A124: 3.4 | R124: 106 | S124: 3.4 | T124: 580 | U124: 3854 | V124: 151 | W124: 1 | Z124: 105 | AA124: 73.55421687 | AB124: 15 | AK124: 3.4
A125: 1.9 | R125: 107 | S125: 1.9 | T125: 280 | U125: 3983 | V125: 151 | W125: 1 | Z125: 106 | AA125: 73.55421687 | AB125: 16 | AK125: 1.9
A126: 0.3 | R126: 108 | S126: 0.3 | T126: 0 | U126: 3832 | V126: 151 | W126: 1 | Z126: 107 | AA126: 73.55421687 | AB126: 17 | AK126: 0.3
A127: 2.4 | R127: 109 | S127: 2.4 | T127: 380 | U127: 4061 | V127: 151 | W127: 1 | Z127: 108 | AA127: 73.55421687 | AB127: 18 | AK127: 2.4
A128: 9.9 | R128: 110 | S128: 9.9 | T128: 1880 | U128: 4925 | V128: 151 | W128: 1 | Z128: 109 | AA128: 73.55421687 | AB128: 19 | AK128: 9.9
A129: 5.3 | R129: 111 | S129: 5.3 | T129: 960 | U129: 4925 | V129: 151 | W129: 1 | Z129: 110 | AA129: 73.55421687 | AB129: 20 | AK129: 5.3
A130: 4.5 | R130: 112 | S130: 4.5 | T130: 800 | U130: 4925 | V130: 151 | W130: 1 | Z130: 111 | AA130: 73.55421687 | AB130: 21 | AK130: 4.5
A131: 0.1 | R131: 113 | S131: 0.1 | T131: 0 | U131: 4774 | V131: 151 | W131: 1 | Z131: 112 | AA131: 73.55421687 | AB131: 22 | AK131: 0.1
A132: 0 | R132: 114 | S132: 0 | T132: 0 | U132: 4623 | V132: 151 | W132: 1 | Z132: 113 | AA132: 73.55421687 | AB132: 23 | AK132: 0
A133: 0 | R133: 115 | S133: 0 | T133: 0 | U133: 4473 | V133: 150 | W133: 0 | Z133: 114 | AA133: 73.55421687 | AB133: 24 | AK133: 0
A134: 0 | R134: 116 | S134: 0 | T134: 0 | U134: 4323 | V134: 150 | W134: 0 | Z134: 115 | AA134: 73.55421687 | AB134: 25 | AK134: 0
A135: 1.4 | R135: 117 | S135: 1.4 | T135: 180 | U135: 4353 | V135: 150 | W135: 0 | Z135: 116 | AA135: 73.55421687 | AB135: 26 | AK135: 1.4
A136: 0 | R136: 118 | S136: 0 | T136: 0 | U136: 4203 | V136: 150 | W136: 0 | Z136: 117 | AA136: 73.55421687 | AB136: 27 | AK136: 0
A137: 0 | R137: 119 | S137: 0 | T137: 0 | U137: 4053 | V137: 150 | W137: 0 | Z137: 118 | AA137: 73.55421687 | AB137: 28 | AK137: 0
A138: 0 | R138: 120 | S138: 0 | T138: 0 | U138: 3903 | V138: 150 | W138: 0 | Z138: 119 | AA138: 73.55421687 | AB138: 29 | AK138: 0
A139: 0 | R139: 121 | S139: 0 | T139: 0 | U139: 3753 | V139: 150 | W139: 0 | Z139: 120 | AA139: 73.55421687 | AB139: 30 | AK139: 0
A140: 0 | R140: 122 | S140: 0 | T140: 0 | U140: 3603 | V140: 150 | W140: 0 | Z140: 121 | AA140: =$E$21 -> 0 | AB140: 1 | AK140: 0
A141: 0.3 | R141: 123 | S141: 0.3 | T141: 0 | U141: 3453 | V141: 150 | W141: 0 | Z141: 122 | AA141: 0 | AB141: =IF(AB140=365,1,AB140+1) -> 2 | AK141: 0.3
A142: 0.3 | R142: 124 | S142: 0.3 | T142: 0 | U142: 3303 | V142: 150 | W142: 0 | Z142: 123 | AA142: 0 | AB142: =IF(AB141=365,1,AB141+1) -> 3 | AK142: 0.3
A143: 8.9 | R143: 125 | S143: 8.9 | T143: 1680 | U143: 4832 | V143: 151 | W143: 1 | Z143: 124 | AA143: 0 | AB143: 4 | AK143: 8.9
A144: 0.9 | R144: 126 | S144: 0.9 | T144: 80 | U144: 4761 | V144: 151 | W144: 1 | Z144: 125 | AA144: 0 | AB144: 5 | AK144: 0.9
A145: 7.7 | R145: 127 | S145: 7.7 | T145: 1440 | U145: 4925 | V145: 151 | W145: 1 | Z145: 126 | AA145: 0 | AB145: 6 | AK145: 7.7
A146: 4.3 | R146: 128 | S146: 4.3 | T146: 760 | U146: 4925 | V146: 151 | W146: 1 | Z146: 127 | AA146: 0 | AB146: 7 | AK146: 4.3
A147: 0 | R147: 129 | S147: 0 | T147: 0 | U147: 4774 | V147: 151 | W147: 1 | Z147: 128 | AA147: 0 | AB147: 8 | AK147: 0
A148: 0 | R148: =IF(R147=365,1,R147+1) -> 130 | S148: 0 | T148: 0 | U148: 4623 | V148: 151 | W148: 1 | Z148: 129 | AA148: 0 | AB148: 9 | AK148: 0
A149: 0 | R149: 131 | S149: 0 | T149: =IF(S149>$S$5,(S149-$S$5)*$E$5-$S$6,0) -> 0 | U149: =IF((U148+T149)<(V149),0,IF((U148+T149-V149)>$S$10,($S$10-$S$3/2),(T149+U148-V149))) -> 4473 | V149: =IF(U148+T149<($S$3+W149),(U148+T149/2),($S$3+W149)) -> 150 | W149: =IF((SUM(S147:S149))<$AE$19,(VLOOKUP(R149,$Z$20:$AA$384,2,FALSE)/30*$E$7),1) -> 0 | Z149: 130 | AA149: 0 | AB149: 10 | AK149: 0
A150: 0 | R150: 132 | S150: 0 | T150: 0 | U150: 4323 | V150: 150 | W150: 0 | Z150: =IF(Z149=365,1,Z149+1) -> 131 | AA150: 0 | AB150: 11 | AK150: 0
A151: 2.2 | R151: 133 | S151: 2.2 | T151: 340 | U151: 4512 | V151: 151 | W151: 1 | Z151: 132 | AA151: 0 | AB151: 12 | AK151: 2.2
A152: 0.2 | R152: 134 | S152: 0.2 | T152: 0 | U152: 4361 | V152: 151 | W152: 1 | Z152: 133 | AA152: 0 | AB152: 13 | AK152: 0.2
A153: 0 | R153: 135 | S153: 0 | T153: 0 | U153: 4210 | V153: 151 | W153: 1 | Z153: 134 | AA153: 0 | AB153: 14 | AK153: 0
A154: 0 | R154: 136 | S154: 0 | T154: 0 | U154: 4060 | V154: 150 | W154: 0 | Z154: 135 | AA154: 0 | AB154: 15 | AK154: 0
A155: 8 | R155: 137 | S155: 8 | T155: 1500 | U155: 4925 | V155: 151 | W155: 1 | Z155: 136 | AA155: 0 | AB155: 16 | AK155: 8
A156: 3.1 | R156: 138 | S156: 3.1 | T156: 520 | U156: 4925 | V156: 151 | W156: 1 | Z156: 137 | AA156: 0 | AB156: 17 | AK156: 3.1
A157: 5.5 | R157: 139 | S157: 5.5 | T157: 1000 | U157: 4925 | V157: 151 | W157: 1 | Z157: 138 | AA157: 0 | AB157: 18 | AK157: 5.5
A158: 0.2 | R158: 140 | S158: 0.2 | T158: 0 | U158: 4774 | V158: 151 | W158: 1 | Z158: 139 | AA158: 0 | AB158: 19 | AK158: 0.2
A159: 0 | R159: 141 | S159: 0 | T159: 0 | U159: 4623 | V159: 151 | W159: 1 | Z159: 140 | AA159: 0 | AB159: 20 | AK159: 0
A160: 0 | R160: 142 | S160: 0 | T160: 0 | U160: 4473 | V160: 150 | W160: 0 | Z160: 141 | AA160: 0 | AB160: 21 | AK160: 0
A161: 0 | R161: 143 | S161: 0 | T161: 0 | U161: 4323 | V161: 150 | W161: 0 | Z161: 142 | AA161: 0 | AB161: 22 | AK161: 0
A162: 0 | R162: 144 | S162: 0 | T162: 0 | U162: 4173 | V162: 150 | W162: 0 | Z162: 143 | AA162: 0 | AB162: 23 | AK162: 0
A163: 0 | R163: 145 | S163: 0 | T163: 0 | U163: 4023 | V163: 150 | W163: 0 | Z163: 144 | AA163: 0 | AB163: 24 | AK163: 0
A164: 0 | R164: 146 | S164: 0 | T164: 0 | U164: 3873 | V164: 150 | W164: 0 | Z164: 145 | AA164: 0 | AB164: 25 | AK164: 0
A165: 0 | R165: 147 | S165: 0 | T165: 0 | U165: 3723 | V165: 150 | W165: 0 | Z165: 146 | AA165: 0 | AB165: 26 | AK165: 0
A166: 0 | R166: 148 | S166: 0 | T166: 0 | U166: 3573 | V166: 150 | W166: 0 | Z166: 147 | AA166: 0 | AB166: 27 | AK166: 0
A167: 0 | R167: 149 | S167: 0 | T167: 0 | U167: 3423 | V167: 150 | W167: 0 | Z167: 148 | AA167: 0 | AB167: 28 | AK167: 0
A168: 0 | R168: 150 | S168: 0 | T168: 0 | U168: 3273 | V168: 150 | W168: 0 | Z168: 149 | AA168: 0 | AB168: 29 | AK168: 0
A169: 0 | R169: 151 | S169: 0 | T169: 0 | U169: 3123 | V169: 150 | W169: 0 | Z169: 150 | AA169: 0 | AB169: 30 | AK169: 0
A170: 0 | R170: 152 | S170: 0 | T170: 0 | U170: 2973 | V170: 150 | W170: 0 | Z170: 151 | AA170: 0 | AB170: 31 | AK170: 0
A171: 0.2 | R171: 153 | S171: 0.2 | T171: 0 | U171: 2823 | V171: 150 | W171: 0 | Z171: 152 | AA171: =$E$22 -> 0 | AB171: 1 | AK171: 0.2
A172: 0.6 | R172: 154 | S172: 0.6 | T172: 20 | U172: 2693 | V172: 150 | W172: 0 | Z172: 153 | AA172: 0 | AB172: =IF(AB171=365,1,AB171+1) -> 2 | AK172: 0.6
A173: 0 | R173: 155 | S173: 0 | T173: 0 | U173: 2543 | V173: 150 | W173: 0 | Z173: 154 | AA173: 0 | AB173: =IF(AB172=365,1,AB172+1) -> 3 | AK173: 0
A174: 0.4 | R174: 156 | S174: 0.4 | T174: 0 | U174: 2393 | V174: 150 | W174: 0 | Z174: 155 | AA174: 0 | AB174: 4 | AK174: 0.4
A175: 0 | R175: 157 | S175: 0 | T175: 0 | U175: 2243 | V175: 150 | W175: 0 | Z175: 156 | AA175: 0 | AB175: 5 | AK175: 0
A176: 0 | R176: 158 | S176: 0 | T176: 0 | U176: 2093 | V176: 150 | W176: 0 | Z176: 157 | AA176: 0 | AB176: 6 | AK176: 0
A177: 0 | R177: 159 | S177: 0 | T177: 0 | U177: 1943 | V177: 150 | W177: 0 | Z177: 158 | AA177: 0 | AB177: 7 | AK177: 0
A178: 0 | R178: 160 | S178: 0 | T178: 0 | U178: 1793 | V178: 150 | W178: 0 | Z178: 159 | AA178: 0 | AB178: 8 | AK178: 0
A179: 0.2 | R179: 161 | S179: 0.2 | T179: 0 | U179: 1643 | V179: 150 | W179: 0 | Z179: 160 | AA179: 0 | AB179: 9 | AK179: 0.2
A180: 9.2 | R180: 162 | S180: 9.2 | T180: 1740 | U180: 3232 | V180: 151 | W180: 1 | Z180: 161 | AA180: 0 | AB180: 10 | AK180: 9.2
A181: 4.2 | R181: 163 | S181: 4.2 | T181: 740 | U181: 3821 | V181: 151 | W181: 1 | Z181: 162 | AA181: 0 | AB181: 11 | AK181: 4.2
A182: 5.7 | R182: 164 | S182: 5.7 | T182: 1040 | U182: 4710 | V182: 151 | W182: 1 | Z182: 163 | AA182: 0 | AB182: 12 | AK182: 5.7
A183: 0.1 | R183: 165 | S183: 0.1 | T183: 0 | U183: 4559 | V183: 151 | W183: 1 | Z183: 164 | AA183: 0 | AB183: 13 | AK183: 0.1
A184: 0.5 | R184: 166 | S184: 0.5 | T184: 0 | U184: 4408 | V184: 151 | W184: 1 | Z184: 165 | AA184: 0 | AB184: 14 | AK184: 0.5
A185: 2.2 | R185: 167 | S185: 2.2 | T185: 340 | U185: 4597 | V185: 151 | W185: 1 | Z185: 166 | AA185: 0 | AB185: 15 | AK185: 2.2
A186: 0 | R186: 168 | S186: 0 | T186: 0 | U186: 4446 | V186: 151 | W186: 1 | Z186: 167 | AA186: 0 | AB186: 16 | AK186: 0
A187: 0 | R187: 169 | S187: 0 | T187: 0 | U187: 4295 | V187: 151 | W187: 1 | Z187: 168 | AA187: 0 | AB187: 17 | AK187: 0
A188: 0 | R188: 170 | S188: 0 | T188: 0 | U188: 4145 | V188: 150 | W188: 0 | Z188: 169 | AA188: 0 | AB188: 18 | AK188: 0
A189: 2.9 | R189: 171 | S189: 2.9 | T189: 480 | U189: 4474 | V189: 151 | W189: 1 | Z189: 170 | AA189: 0 | AB189: 19 | AK189: 2.9
A190: 1.7 | R190: 172 | S190: 1.7 | T190: 240 | U190: 4563 | V190: 151 | W190: 1 | Z190: 171 | AA190: 0 | AB190: 20 | AK190: 1.7
A191: 4.1 | R191: 173 | S191: 4.1 | T191: 720 | U191: 4925 | V191: 151 | W191: 1 | Z191: 172 | AA191: 0 | AB191: 21 | AK191: 4.1
A192: 4.7 | R192: 174 | S192: 4.7 | T192: 840 | U192: 4925 | V192: 151 | W192: 1 | Z192: 173 | AA192: 0 | AB192: 22 | AK192: 4.7
A193: 0 | R193: 175 | S193: 0 | T193: 0 | U193: 4774 | V193: 151 | W193: 1 | Z193: 174 | AA193: 0 | AB193: 23 | AK193: 0
A194: 0.5 | R194: 176 | S194: 0.5 | T194: 0 | U194: 4623 | V194: 151 | W194: 1 | Z194: 175 | AA194: 0 | AB194: 24 | AK194: 0.5
A195: 0.3 | R195: 177 | S195: 0.3 | T195: 0 | U195: 4473 | V195: 150 | W195: 0 | Z195: 176 | AA195: 0 | AB195: 25 | AK195: 0.3
A196: 0 | R196: 178 | S196: 0 | T196: 0 | U196: 4323 | V196: 150 | W196: 0 | Z196: 177 | AA196: 0 | AB196: 26 | AK196: 0
A197: 0 | R197: 179 | S197: 0 | T197: 0 | U197: 4173 | V197: 150 | W197: 0 | Z197: 178 | AA197: 0 | AB197: 27 | AK197: 0
A198: 0 | R198: 180 | S198: 0 | T198: 0 | U198: 4023 | V198: 150 | W198: 0 | Z198: 179 | AA198: 0 | AB198: 28 | AK198: 0
A199: 0 | R199: 181 | S199: 0 | T199: 0 | U199: 3873 | V199: 150 | W199: 0 | Z199: 180 | AA199: 0 | AB199: 29 | AK199: 0
A200: 0 | R200: 182 | S200: 0 | T200: 0 | U200: 3723 | V200: 150 | W200: 0 | Z200: 181 | AA200: 0 | AB200: 30 | AK200: 0
A201: 4.2 | R201: 183 | S201: 4.2 | T201: 740 | U201: 4312 | V201: 151 | W201: 1 | Z201: 182 | AA201: =$E$23 -> 0 | AB201: 1 | AK201: 4.2
... 2049 more rows
